bitfinex/quotes_ETHUSD_20240709
["timestamp","ask_amount","ask_price","bid_price","bid_amount"]
[1720494248643,5.692,3074.0,3072.5,0.55]
[1720494248848,2.4935,3073.7,3072.5,0.55]
[1720494249151,1.71919686,3073.6,3072.4,0.55]
[1720494249354,3.59175,3073.6,3072.4,0.55]
[1720494249503,3.59175,3073.6,3071.2,7.44]
[1720494249504,2.4935,3073.4,3071.2,7.44]
[1720494249705,3.424,3072.7,3071.0,3.25623]
[1720494249917,2.268,3073.0,3071.5,3.25573]
[1720494249918,2.8359,3072.6,3071.5,3.25573]
[1720494250232,2.4935,3072.4,3071.0,3.25625]
[1720494250436,2.4935,3072.4,3069.7,5.42245744]
[1720494250437,2.4935,3072.2,3070.2,3.25711]
[1720494250626,2.4935,3072.1,3070.0,0.06512241]
[1720494250810,2.4935,3072.1,3070.0,0.39172241]
[1720494251005,2.4935,3072.1,3070.5,3.25676]
[1720494251006,0.89175,3072.0,3070.5,3.25676]
[1720494251210,2.3509,3071.9,3070.5,3.25676]
[1720494251406,3.89175,3072.0,3070.3,3.25699]
[1720494251407,5.7749,3071.8,3070.3,3.25699]
[1720494251709,2.3509,3071.6,3070.3,3.2569]
[1720494252545,2.3509,3071.6,3069.9,3.25739]
[1720494252744,2.3509,3071.4,3070.0,3.25724]
[1720494252923,0.57749,3071.3,3070.0,3.25724]
[1720494253445,0.57749,3071.3,3069.5,0.1140726]
[1720494253446,2.3132,3071.2,3069.6,3.25771]
[1720494253652,2.3132,3071.2,3069.5,0.1140726]
[1720494253653,2.3132,3071.0,3069.5,0.1140726]
[1720494253812,0.23132,3070.9,3069.6,3.25766]
[1720494254012,3.23132,3070.9,3069.6,3.25766]
[1720494254655,3.23132,3070.9,3069.7,3.25763]
[1720494255124,3.0,3070.9,3070.1,3.25719]
[1720494255321,2.3132,3071.0,3070.3,3.25698]
[1720494255561,2.3132,3071.0,3070.6,3.25667]
[1720494255921,2.3132,3071.0,3070.7,0.55]
[1720494256127,2.54452,3071.0,3070.0,3.25724]
[1720494256458,2.54452,3071.0,3069.5,0.1140726]
[1720494256459,2.54452,3071.0,3070.1,0.55]
[1720494256657,2.54452,3071.0,3070.0,0.55]
[1720494256863,0.254452,3070.9,3070.0,0.55]
[1720494257023,0.254452,3070.9,3069.9,0.55]
[1720494257658,0.254452,3070.9,3069.9,3.80742]
[1720494257833,2.3132,3071.0,3070.1,3.25721]
[1720494258032,2.3132,3071.0,3070.2,3.80704]
[1720494258423,2.3132,3071.0,3070.2,0.55]
[1720494259943,2.3132,3071.0,3069.7,3.25763]
[1720494260140,0.23132,3070.9,3069.8,0.55]
[1720494260521,0.23132,3070.9,3069.8,3.80753]
[1720494260760,0.23132,3070.9,3069.9,3.25741]
[1720494261053,0.23132,3070.9,3069.8,0.55]
[1720494261054,2.3132,3071.0,3070.2,3.25706]
[1720494261364,2.3132,3071.0,3070.3,0.55]
[1720494261896,2.3132,3071.0,3069.8,3.25753]
[1720494262189,2.3132,3071.0,3069.9,0.55]
[1720494262357,0.23132,3070.9,3069.9,0.55]
[1720494262952,2.3132,3071.0,3070.0,0.06514284]
[1720494263153,2.3132,3071.0,3070.1,3.80714]
[1720494263404,2.3132,3071.0,3070.2,0.06513434]
[1720494263572,2.3132,3071.0,3070.3,0.55]
[1720494263907,2.3132,3071.0,3070.2,3.25709]
[1720494264070,2.3132,3071.0,3070.3,0.55]
[1720494264684,2.3132,3071.0,3070.2,0.55]
[1720494264853,2.3132,3071.0,3070.2,3.80711]
[1720494265467,0.23132,3070.9,3069.6,3.25767]
[1720494265885,0.23132,3070.9,3069.8,3.25746]
[1720494266185,0.23132,3070.9,3069.9,0.55]
[1720494266369,0.23132,3070.9,3069.5,0.1140726]
[1720494266370,3.85213602,3070.8,3069.5,0.1140726]
[1720494266571,2.4692,3070.8,3069.5,0.1140726]
[1720494266836,2.4692,3070.8,3069.5,3.3718426]
[1720494267975,2.4692,3070.8,3069.6,0.55]
[1720494268921,2.3129,3070.7,3069.6,0.55]
[1720494269123,2.3129,3070.5,3069.5,0.1140726]
[1720494270300,2.3129,3070.5,3069.6,3.25772]
[1720494270502,2.3129,3070.5,3069.9,3.25741]
[1720494270702,2.3129,3070.5,3070.2,3.25709]
[1720494271288,2.3129,3070.5,3070.0,3.32237663]
[1720494271493,2.3129,3070.5,3070.1,0.55]
[1720494271713,2.3129,3070.5,3070.1,3.8072]
[1720494272137,2.3129,3070.5,3070.1,0.55]
[1720494272288,2.3129,3070.5,3069.9,0.55]
[1720494272491,2.628979,3070.5,3069.9,3.80741]
[1720494272699,2.628979,3070.5,3069.9,3.80743]
[1720494273734,2.628979,3070.5,3069.9,0.55]
[1720494274347,2.628979,3070.5,3069.5,0.1140726]
[1720494274348,2.8918769,3070.5,3069.5,0.1140726]
[1720494274487,2.8918769,3070.5,3069.5,3.3719226]
[1720494274923,2.628979,3070.5,3069.5,0.1140726]
[1720494275125,2.628979,3070.5,3068.8,3.0]
[1720494275126,5.7369,3070.0,3068.5,3.2589]
[1720494275300,5.7369,3070.0,3068.6,3.2588]
[1720494275301,0.57369,3069.9,3068.6,3.2588]
[1720494275629,3.57369,3069.9,3068.6,3.2588]
[1720494275993,2.4507,3069.8,3068.6,3.2588]
[1720494276592,2.4507,3069.8,3068.7,0.06516845]
[1720494276797,0.602439,3069.7,3067.9,0.06516153]
[1720494277101,0.602439,3069.7,3068.8,3.25857]
[1720494277330,2.4507,3069.8,3068.8,3.25857]
[1720494277937,2.4507,3069.8,3068.8,3.32373461]
[1720494278227,2.4507,3069.8,3069.0,3.25835]
[1720494278428,2.4507,3069.8,3069.2,3.25809]
[1720494278636,2.4507,3069.8,3069.3,3.32320503]
[1720494279132,2.4507,3069.8,3069.3,3.25805]
[1720494280547,3.424,3069.5,3067.8,1.9759127]
[1720494280727,3.424,3069.5,3068.1,3.25933]
[1720494280728,2.3695,3069.3,3068.1,3.25933]
[1720494281045,1.12887293,3069.2,3068.1,3.32451095]
[1720494281247,2.3695,3069.3,3068.1,3.32451095]
[1720494281395,0.57119,3069.2,3068.1,3.32451095]
[1720494281597,3.57119,3069.2,3068.1,3.25933]
[1720494282096,1.1290728,3069.1,3068.1,3.25933]
[1720494282291,3.57119,3069.2,3068.1,3.25933]
[1720494282493,0.594069,3069.1,3068.1,3.25933]
[1720494282692,2.3695,3069.3,3068.1,3.25933]
[1720494282693,2.3695,3069.3,3068.4,3.25902]
[1720494282905,2.3695,3069.3,3068.5,3.32405086]
[1720494283799,2.3695,3069.3,3068.8,3.25858]
[1720494284041,2.3695,3069.3,3067.7,6.424]
[1720494284042,2.4792,3070.1,3068.9,0.06516144]
[1720494284349,2.4792,3070.1,3068.2,3.25922]
[1720494284350,2.4792,3069.4,3068.2,3.25922]
[1720494284503,0.55619055,3069.3,3068.2,3.25922]
[1720494284831,0.08147055,3069.2,3068.2,3.25922]
[1720494285145,0.08147055,3069.2,3067.6,3.80979]
[1720494285146,0.08147055,3069.2,3068.0,3.25938]
[1720494285295,0.08147055,3069.2,3068.1,0.55]
[1720494285499,0.35561906,3069.1,3068.1,0.55]
[1720494285711,0.08147053,3069.0,3068.1,0.55]
[1720494286244,0.08147053,3069.0,3067.8,3.25966]
[1720494286245,0.08147053,3068.9,3067.8,3.25966]
[1720494286444,0.08147053,3068.9,3067.9,0.55]
[1720494286742,0.25277705,3068.8,3067.9,0.55]
[1720494287536,2.2504,3068.7,3067.4,3.26008]
[1720494287834,0.47711771,3068.6,3067.4,3.26008]
[1720494288039,3.47711771,3068.6,3067.4,3.26008]
[1720494288703,3.47711771,3068.6,3067.6,3.25986]
[1720494288932,3.47711771,3068.6,3067.5,3.25995]
[1720494289095,0.57275177,3068.5,3067.6,0.55]
[1720494289494,0.57275177,3068.5,3067.5,3.25997]
[1720494289719,0.57275177,3068.5,3067.6,0.55]
[1720494290297,0.57275177,3068.5,3067.6,3.80979]
[1720494290493,0.47711771,3068.6,3067.6,3.80979]
[1720494290734,2.4393,3068.4,3066.5,0.67037875]
[1720494291050,2.4393,3068.4,3066.6,3.26091]
[1720494291051,2.4726,3068.2,3066.6,3.26091]
[1720494291194,2.4726,3068.1,3066.6,3.26091]
[1720494291399,0.32876573,3068.0,3066.7,3.26082]
[1720494291711,0.24726,3068.0,3067.0,3.2605]
[1720494291911,2.4726,3068.1,3066.9,3.26061]
[1720494291912,0.271986,3067.9,3066.9,3.26061]
[1720494292122,0.271986,3067.9,3067.0,3.32459642]
[1720494292314,0.271986,3067.9,3067.0,3.2605]
[1720494293921,0.271986,3067.9,3067.2,3.26022]
[1720494294131,0.271986,3067.9,3067.0,3.2605]
[1720494294418,0.271986,3067.9,3066.9,3.26062]
[1720494294629,0.271986,3067.9,3067.0,3.8105]
[1720494296046,2.3108,3068.3,3067.3,3.26011]
[1720494296346,2.3108,3068.3,3067.6,3.25986]
[1720494297151,2.3108,3068.3,3068.0,3.25944]
[1720494297515,2.3108,3069.4,3068.1,0.06404302]
[1720494297819,2.5457476,3069.4,3068.1,0.06404302]
[1720494298128,2.5457476,3069.4,3068.0,3.25944]
[1720494298328,2.5457476,3069.4,3068.1,0.06403186]
[1720494298527,2.5457476,3069.4,3068.1,3.32337186]
[1720494298727,0.48137476,3069.3,3068.1,3.32337186]
[1720494298923,3.48137476,3069.3,3068.1,3.32337186]
[1720494299740,0.48137476,3069.3,3068.1,3.32337186]
[1720494299946,2.5457476,3069.4,3068.4,3.25902]
[1720494300244,2.5457476,3069.4,3067.5,3.25992]
[1720494300245,2.3867,3069.2,3067.0,0.66843007]
[1720494300566,2.3867,3068.9,3067.5,3.25998]
[1720494300726,2.268,3069.0,3067.1,3.2603]
[1720494300727,2.46818453,3068.8,3067.1,3.2603]
[1720494300933,2.71501182,3068.7,3067.2,3.26029]
[1720494301132,2.46819337,3068.7,3067.2,3.26029]
[1720494301527,2.4319,3068.6,3067.2,3.26029]
[1720494301833,5.4319,3068.6,3067.2,3.26029]
[1720494302028,2.4319,3068.6,3067.3,0.06407611]
[1720494302232,2.4319,3068.6,3068.1,3.25932]
[1720494302736,0.24681584,3069.1,3068.2,3.25922]
[1720494302737,2.341,3069.0,3068.2,3.25922]
[1720494303417,2.341,3069.0,3068.2,3.32324518]
[1720494303618,2.341,3069.0,3068.3,0.06402518]
[1720494303813,2.341,3069.0,3068.2,3.25922]
[1720494304059,2.341,3069.0,3068.5,3.25891]
[1720494304219,2.268,3070.0,3068.7,3.2587]
[1720494304220,2.3107,3069.9,3068.7,3.2587]
[1720494304421,2.5375,3069.9,3068.8,3.3225833]
[1720494304621,2.5375,3069.9,3068.9,3.32247551]
[1720494304858,0.15375,3069.8,3068.9,3.32247551]
[1720494305158,2.3107,3069.9,3069.2,3.25815]
[1720494305531,2.3107,3069.9,3069.2,3.322114]
[1720494305735,2.3107,3069.9,3069.2,3.25815]
[1720494306274,2.3107,3069.9,3069.0,0.55]
[1720494306478,0.31252079,3069.8,3068.4,3.25893]
[1720494306627,0.31252079,3069.8,3068.1,2.2952]
[1720494306628,0.08145555,3069.7,3068.7,3.25867]
[1720494307565,0.08145555,3069.7,3068.6,3.25871]
[1720494307720,0.34377811,3069.7,3068.6,3.25871]
[1720494308155,0.34377811,3069.7,3068.5,3.80891]
[1720494308359,2.4099,3069.6,3068.5,3.80891]
[1720494308535,2.4099,3069.6,3068.9,3.25842]
[1720494308739,2.4099,3069.6,3068.8,3.25858]
[1720494308935,2.4099,3069.6,3068.5,0.55]
[1720494309143,0.08145024,3069.5,3068.5,0.55]
[1720494309338,0.24913502,3069.4,3068.5,0.55]
[1720494309959,0.24913502,3069.4,3068.5,3.25891]
[1720494310530,0.24913502,3069.4,3068.7,3.2587]
[1720494310755,2.4099,3069.6,3068.8,0.06399473]
[1720494310939,2.4099,3069.6,3068.3,0.55]
[1720494310940,2.2551,3070.1,3069.1,3.25822]
[1720494312342,2.2551,3070.1,3069.0,3.25835]
[1720494312546,2.2551,3070.1,3069.1,3.80826]
[1720494312724,0.22551,3070.0,3069.1,3.80826]
[1720494313067,0.22551,3070.0,3069.1,3.80827]
[1720494314063,0.08144283,3069.9,3068.6,3.0]
[1720494314251,2.4651,3069.8,3068.5,3.25888]
[1720494315057,0.0814593,3069.7,3068.3,3.25904]
[1720494315349,2.3828,3069.7,3068.4,3.25899]
[1720494315548,2.3828,3069.7,3068.5,3.25882]
[1720494315748,2.3828,3069.7,3068.7,3.25869]
[1720494315949,2.94376,3069.7,3068.9,3.25848]
[1720494316149,2.94376,3069.7,3068.7,3.25869]
[1720494316554,3.02521273,3069.7,3068.5,3.25888]
[1720494316758,2.94376,3069.7,3068.5,3.25884]
[1720494316943,0.594376,3069.6,3068.4,3.25894]
[1720494317149,0.594376,3069.6,3068.5,0.55]
[1720494317867,0.594376,3069.6,3068.1,3.25932]
[1720494317868,2.4045,3069.4,3068.1,3.25932]
[1720494318068,2.4045,3069.4,3067.5,7.44]
[1720494318069,0.08146428,3069.3,3067.9,3.25955]
[1720494318270,2.4045,3069.2,3067.5,3.25991]
[1720494318470,2.4045,3069.0,3067.6,3.25986]
[1720494318778,3.68759588,3069.3,3067.6,3.25986]
[1720494318779,2.4045,3068.8,3067.6,3.25986]
[1720494318941,5.4045,3068.8,3067.6,3.25986]
[1720494319142,0.54859804,3068.7,3067.6,3.25986]
[1720494319341,2.4045,3068.8,3067.6,3.25986]
[1720494320081,0.08148032,3068.7,3067.4,3.26007]
[1720494320535,2.4045,3068.6,3067.2,3.26026]
[1720494320739,0.33008585,3068.5,3067.2,3.26026]
[1720494320939,3.33008585,3068.5,3067.2,3.26029]
[1720494321553,3.24859803,3068.5,3067.2,3.26029]
[1720494321780,3.24859803,3068.5,3067.1,3.26039]
[1720494321937,2.4045,3068.3,3067.1,3.26039]
[1720494322341,2.4045,3068.3,3067.2,3.2603]
[1720494322562,2.4045,3068.3,3067.3,3.26018]
[1720494322972,2.48599043,3068.3,3067.0,3.26049]
[1720494323150,0.24045,3068.2,3067.1,0.55]
[1720494323349,0.24045,3068.2,3067.3,3.26019]
[1720494323777,2.4045,3068.3,3067.4,0.06407776]
[1720494323982,2.4045,3068.3,3067.6,3.25984]
[1720494324571,2.4045,3068.3,3067.8,3.25957]
[1720494324765,2.4045,3068.3,3067.5,3.80996]
[1720494324969,2.64495,3068.3,3067.3,3.26016]
[1720494325275,2.64495,3068.3,3067.4,3.81008]
[1720494325464,2.4045,3068.3,3067.5,0.06407388]
[1720494325778,2.4045,3068.3,3067.6,0.55]
[1720494325991,2.4045,3068.3,3067.7,0.06405333]
[1720494326278,2.4653,3069.0,3068.0,3.25943]
[1720494326439,0.54653,3068.9,3068.0,3.25943]
[1720494326639,2.4653,3069.0,3068.0,3.25943]
[1720494327080,2.4653,3069.0,3067.8,3.25956]
[1720494327283,0.0814737,3068.9,3067.4,3.26007]
[1720494327451,1.12917537,3068.8,3067.7,3.25968]
[1720494327644,0.54653,3068.9,3067.8,3.25965]
[1720494327858,0.54653,3068.9,3068.0,3.25943]
[1720494328071,2.4653,3069.0,3068.4,3.25901]
[1720494329081,2.4653,3069.0,3068.2,3.25921]
[1720494329288,2.4653,3069.0,3068.3,3.25912]
[1720494330080,2.4653,3069.0,3068.4,0.06402394]
[1720494330380,2.4653,3069.0,3068.4,3.80895]
[1720494330581,2.4653,3069.0,3068.4,0.55]
[1720494330785,2.4653,3069.0,3068.5,3.25884]
[1720494330989,2.71183,3069.0,3068.3,3.25912]
[1720494331485,2.71183,3069.0,3067.8,3.25956]
[1720494331863,0.07501649,3068.9,3067.8,3.32361339]
[1720494332063,0.07501649,3068.9,3068.1,3.25933]
[1720494332268,0.07501649,3068.9,3067.9,3.25953]
[1720494332269,0.27868465,3068.8,3067.9,3.25953]
[1720494332483,0.3519499,3068.8,3068.0,3.25943]
[1720494332854,0.3519499,3068.8,3067.9,3.25953]
[1720494332855,0.3519499,3068.8,3068.1,3.25934]
[1720494333176,0.3519499,3068.8,3068.2,3.25923]
[1720494333177,0.07326525,3068.8,3068.2,3.25923]
[1720494333580,2.4653,3069.0,3068.2,3.25923]
[1720494333774,0.07307829,3068.7,3068.2,3.25923]
[1720494333971,0.07307829,3068.7,3067.9,3.25953]
[1720494333972,2.4653,3069.0,3068.0,3.25936]
[1720494334176,0.07303648,3068.6,3068.0,3.25936]
[1720494334395,2.4653,3069.0,3068.1,3.25931]
[1720494334574,0.24653,3068.9,3068.1,3.25931]
[1720494334773,0.31959205,3068.9,3068.0,3.25936]
[1720494335176,0.08147098,3068.8,3067.7,3.25966]
[1720494335375,0.31959205,3068.9,3067.7,3.25966]
[1720494335560,1.78569634,3069.3,3067.7,3.25966]
[1720494335561,2.4872,3068.6,3067.7,3.25966]
[1720494335766,2.4872,3068.6,3067.8,3.25965]
[1720494336090,0.07275302,3068.5,3067.8,3.25965]
[1720494336493,2.4872,3068.6,3068.0,3.25941]
[1720494337049,2.4872,3068.6,3067.3,3.26012]
[1720494337303,0.24872,3068.5,3067.4,3.26007]
[1720494337514,0.32142569,3068.5,3067.4,3.26007]
[1720494338495,0.32142569,3068.5,3067.5,3.25998]
[1720494338696,0.32142569,3068.5,3066.7,5.3948]
[1720494338697,0.32142569,3068.5,3067.7,3.25973]
[1720494338870,0.07270569,3068.5,3067.9,3.25955]
[1720494339702,2.4872,3068.6,3068.0,3.25942]
[1720494339884,0.07274086,3068.4,3068.1,3.2593]
[1720494340087,2.4872,3068.6,3068.2,3.25921]
[1720494340290,0.07262634,3068.3,3068.0,3.25937]
[1720494340491,2.73592,3068.6,3067.8,3.25965]
[1720494340670,0.0725098,3068.2,3067.9,0.55]
[1720494340879,0.273592,3068.5,3067.9,0.55]
[1720494341412,0.07260906,3068.4,3067.9,3.80954]
[1720494342315,0.07260906,3068.4,3067.7,3.25974]
[1720494343016,0.07260906,3068.4,3067.9,3.25954]
[1720494343230,2.4872,3068.6,3068.0,0.61403476]
[1720494343395,2.04713114,3069.6,3068.0,0.61403476]
[1720494343396,2.3234,3069.5,3068.0,0.06403476]
[1720494343591,1.63130483,3069.4,3068.3,3.25903]
[1720494343781,1.1289844,3069.3,3068.3,3.32303991]
[1720494343978,0.50232043,3069.4,3068.4,0.55]
[1720494343979,1.36280072,3069.2,3068.4,0.55]
[1720494344215,0.07068584,3069.2,3068.4,0.55]
[1720494344434,0.43151311,3069.4,3068.4,0.55]
[1720494344584,1.12892442,3069.3,3068.5,3.25891]
[1720494344785,0.07063888,3069.2,3068.5,3.25891]
[1720494345023,0.23374652,3069.2,3068.5,3.25891]
[1720494345223,0.07063888,3069.2,3068.6,3.25877]
[1720494345439,0.43151311,3069.4,3068.5,3.25891]
[1720494345734,0.07060169,3069.1,3068.7,3.25868]
[1720494346229,0.43151311,3069.4,3068.7,3.25868]
[1720494346427,1.40440087,3069.3,3068.7,3.25868]
[1720494346604,0.27549131,3069.3,3068.7,3.25868]
[1720494346800,0.07057332,3069.2,3068.7,3.25868]
[1720494347108,0.27549131,3069.3,3068.7,3.25868]
[1720494347316,0.07052948,3069.1,3068.7,3.25868]
[1720494347488,0.27549131,3069.3,3068.7,3.25868]
[1720494348131,0.27549131,3069.3,3068.5,3.25891]
[1720494348429,0.27549131,3069.3,3068.6,3.25874]
[1720494349813,0.07050263,3069.2,3068.7,3.2587]
[1720494350030,0.07050263,3069.2,3068.4,0.55]
[1720494350231,0.07050263,3069.2,3068.4,6.51793]
[1720494350459,0.07050263,3069.2,3068.3,3.2591]
[1720494350593,0.07050263,3069.2,3068.1,0.55]
[1720494350594,0.07050263,3069.2,3068.5,3.2589]
[1720494351090,0.07050263,3069.2,3068.4,3.25894]
[1720494351926,0.07050263,3069.2,3068.5,3.25888]
[1720494352129,0.07050263,3069.2,3068.4,3.25894]
[1720494352286,0.07050263,3069.2,3068.5,3.25889]
[1720494355202,0.07050263,3069.2,3068.4,3.25894]
[1720494355811,0.07050263,3069.2,3068.5,3.25891]
[1720494356045,0.07050263,3069.2,3067.9,3.2595]
[1720494356046,2.3868,3069.0,3067.7,3.25972]
[1720494356326,1.56200624,3068.9,3068.2,0.275491]
[1720494356533,1.12895434,3068.8,3068.2,0.275491]
[1720494356737,2.3398,3068.7,3067.7,3.25972]
[1720494357039,1.12914496,3068.6,3067.7,3.25972]
[1720494357263,1.12914496,3068.6,3067.5,3.25996]
[1720494357264,1.48307688,3068.5,3067.5,3.2599]
[1720494357468,1.48307688,3068.5,3067.6,3.25987]
[1720494357469,0.42419231,3068.5,3067.6,3.25987]
[1720494357618,1.21068898,3068.4,3067.4,3.26008]
[1720494357824,2.4099096,3068.3,3067.4,3.26008]
[1720494358659,1.12931417,3068.2,3067.4,3.26008]
[1720494358833,0.07017493,3068.2,3067.4,3.26008]
[1720494360053,1.12933016,3068.1,3067.2,3.26028]
[1720494360260,0.08149248,3068.0,3067.2,3.26028]
[1720494360461,0.06999924,3068.0,3067.2,3.26028]
[1720494360757,0.06999924,3068.0,3067.3,3.26019]
[1720494360963,0.06999924,3068.0,3067.1,3.0]
[1720494361117,2.3398,3068.1,3067.0,3.0]
[1720494361320,2.3398,3068.1,3066.8,6.26072]
[1720494361321,0.06979058,3067.9,3066.8,6.26072]
[1720494361536,0.15133838,3068.0,3066.8,6.26072]
[1720494361761,0.0697937,3067.8,3066.8,6.26072]
[1720494362078,0.06972633,3067.7,3066.8,6.26072]
[1720494362277,0.27332676,3067.9,3066.8,6.26072]
[1720494362589,0.06965895,3067.6,3067.2,3.26022]
[1720494362749,2.3398,3068.1,3067.0,3.26043]
[1720494362750,0.0697467,3067.8,3067.0,3.26043]
[1720494362942,2.3816,3067.7,3066.9,3.26061]
[1720494363141,2.45130283,3067.7,3066.8,6.26069]
[1720494363742,2.45130283,3067.7,3066.9,3.26061]
[1720494364642,2.45130283,3067.7,3067.2,3.26029]
[1720494364871,2.3816,3067.7,3067.2,3.26029]
[1720494365744,2.683028,3067.7,3066.8,6.26072]
[1720494366143,0.15124145,3067.6,3066.5,10.70097]
[1720494366336,0.15124145,3067.6,3066.6,3.26093]
[1720494366572,0.28342695,3067.5,3066.6,3.26093]
[1720494366736,0.35311036,3067.5,3066.6,3.26093]
[1720494366955,0.35311036,3067.5,3066.4,0.1140726]
[1720494366956,2.2757,3067.4,3066.5,3.26095]
[1720494367172,2.2757,3067.4,3066.4,3.3752126]
[1720494367370,0.06959565,3067.3,3066.4,3.3752126]
[1720494368762,0.08151507,3067.2,3066.4,3.3752126]
[1720494369089,2.34498226,3067.1,3066.4,0.1140726]
[1720494369289,2.3158,3066.9,3066.4,0.1140726]
[1720494369586,4.0238,3066.9,3066.4,0.1140726]
[1720494369809,4.0238,3066.9,3065.7,3.26181]
[1720494369810,2.3158,3066.7,3065.7,3.26181]
[1720494370087,2.3158,3066.7,3066.2,3.2613]
[1720494370088,0.06667772,3066.6,3066.2,3.2613]
[1720494370389,2.3158,3066.7,3066.2,3.2613]
[1720494370584,2.3158,3066.7,3066.3,3.26124]
[1720494370787,2.4447,3067.5,3066.3,3.26124]
[1720494371295,0.31148066,3067.4,3066.7,3.26082]
[1720494371457,0.06701066,3067.4,3066.9,3.26054]
[1720494371657,2.4447,3067.5,3067.0,3.32460937]
[1720494371992,0.08150083,3067.4,3066.0,7.44]
[1720494372203,2.68917,3067.5,3066.5,3.26102]
[1720494372407,2.68917,3067.5,3066.8,3.26063]
[1720494372580,0.06661901,3067.4,3067.0,3.26049]
[1720494372780,0.06661901,3067.4,3067.1,0.06410192]
[1720494372973,0.06661901,3067.4,3066.8,3.26065]
[1720494373170,0.06661901,3067.4,3066.9,0.55]
[1720494373372,0.06661901,3067.4,3066.8,3.26072]
[1720494374302,0.06661901,3067.4,3066.7,3.26082]
[1720494374303,0.31775091,3067.4,3066.7,3.26082]
[1720494374505,0.06661901,3067.4,3066.7,3.26082]
[1720494375103,2.4966,3067.3,3066.5,3.26097]
[1720494375269,2.5781268,3067.2,3065.8,7.44]
[1720494375474,2.64496718,3067.2,3065.7,3.26181]
[1720494375718,2.4945,3067.0,3065.7,3.26181]
[1720494375874,2.4945,3067.0,3065.5,3.2621]
[1720494375875,2.4945,3066.8,3065.4,3.2622]
[1720494376075,2.4945,3066.6,3065.4,3.2622]
[1720494376298,0.08153845,3066.5,3065.4,3.2622]
[1720494376609,0.08153845,3066.5,3065.5,3.26208]
[1720494376820,0.08153845,3066.5,3065.6,3.0]
[1720494377112,2.4945,3066.6,3065.6,3.0]
[1720494377113,0.06633252,3066.4,3065.9,3.26167]
[1720494377272,2.4945,3066.6,3066.1,3.26144]
[1720494377469,0.06628861,3066.3,3066.1,3.26144]
[1720494377673,2.4945,3066.2,3065.7,3.26182]
[1720494377869,2.4945,3066.2,3065.6,6.26196]
[1720494377870,0.08153175,3067.2,3065.6,3.0]
[1720494378107,2.4945,3067.8,3067.0,3.26047]
[1720494378310,2.4945,3067.8,3067.2,3.2602]
[1720494378487,2.4945,3067.8,3067.6,3.2598]
[1720494378689,0.63268,3067.9,3067.8,3.25966]
[1720494378898,0.63268,3067.9,3067.8,7.13336651]
[1720494379099,0.63268,3067.9,3067.8,10.32898]
[1720494379299,2.4388,3069.0,3068.5,3.2589]
[1720494379499,2.68973026,3069.0,3068.5,3.2589]
[1720494379699,0.34123865,3068.9,3068.5,3.2589]
[1720494379912,0.39973749,3068.9,3068.5,3.2589]
[1720494380213,0.39973749,3068.9,3068.6,3.2588]
[1720494380514,0.39973749,3068.9,3068.7,3.25869]
[1720494380811,0.39973749,3068.9,3068.6,3.2588]
[1720494381014,0.39973749,3068.9,3068.4,3.25902]
[1720494381200,0.39973749,3068.9,3068.5,3.25889]
[1720494381509,2.4388,3069.0,3068.3,3.25904]
[1720494381676,0.05842951,3068.8,3068.6,3.2588]
[1720494381876,2.4388,3069.0,3068.6,3.2588]
[1720494382110,0.05838566,3068.7,3068.6,3.2588]
[1720494382316,2.4388,3069.0,3068.5,3.25891]
[1720494382516,2.4388,3069.0,3068.6,3.25877]
[1720494382675,0.05849689,3068.9,3068.6,3.25877]
[1720494382877,0.05849689,3068.9,3068.4,3.25901]
[1720494383108,0.05849689,3068.9,3067.7,3.25971]
[1720494383109,0.30822658,3068.9,3067.9,3.25954]
[1720494383283,0.0814826,3068.8,3067.9,3.25955]
[1720494383481,0.14012259,3068.8,3067.9,3.25955]
[1720494383925,0.34150522,3068.8,3068.0,3.25943]
[1720494384111,0.34150522,3068.8,3068.1,3.25931]
[1720494384425,0.34150522,3068.8,3068.0,3.25943]
[1720494384919,0.34150522,3068.8,3067.8,3.25964]
[1720494385084,0.08148306,3068.7,3067.6,3.25984]
[1720494385417,2.4115,3068.6,3067.6,3.25984]
[1720494385583,0.08148793,3068.5,3067.6,3.25984]
[1720494385912,0.05843241,3068.5,3067.5,3.0]
[1720494386114,0.24929879,3068.4,3067.2,3.26029]
[1720494386317,0.08149714,3068.3,3066.5,7.44]
[1720494386492,0.24929879,3068.4,3067.3,3.26012]
[1720494386815,2.277,3068.9,3067.2,3.26019]
[1720494386816,2.318,3068.1,3067.2,3.26019]
[1720494387007,2.318,3068.1,3067.2,6.5204]
[1720494387234,0.05836486,3068.0,3067.2,6.5204]
[1720494387441,2.318,3068.1,3067.2,3.26019]
[1720494387621,0.2318,3068.0,3067.2,3.26019]
[1720494387821,0.29016486,3068.0,3067.0,3.26049]
[1720494388147,0.08149761,3067.9,3067.1,6.2604]
[1720494388667,0.34462737,3067.9,3067.2,3.26025]
[1720494388810,0.26312976,3067.9,3067.2,3.26025]
[1720494389013,0.26312976,3067.9,3067.2,3.26022]
[1720494389325,0.26312976,3067.9,3067.1,3.0]
[1720494389536,0.26312976,3067.9,3067.0,3.0]
[1720494389747,0.08149764,3067.8,3066.7,3.26082]
[1720494390062,0.08149764,3067.8,3066.6,3.26086]
[1720494390348,2.3671,3067.6,3066.6,3.26086]
[1720494390528,0.24253669,3067.5,3066.7,3.26082]
[1720494390848,0.30045243,3067.5,3066.7,3.26082]
[1720494392124,0.30045243,3067.5,3066.4,6.26114]
[1720494392125,0.30045243,3067.5,3066.9,3.26062]
[1720494392326,2.3671,3067.6,3067.2,3.26021]
[1720494392629,2.3671,3067.6,3067.3,3.26019]
[1720494392951,2.3671,3067.6,3067.2,3.26022]
[1720494394414,2.3671,3067.6,3066.8,3.2607]
[1720494394615,2.3671,3067.6,3066.4,3.0]